fUST/lending_fUST_20250206
["ID","MTS","AMOUNT","RATE_DAILY","PERIOD"]
[351794555,1738789846731,-500.0,0.00013698,2]
[351794558,1738789846741,-4892.2,0.00013698,2]
[351794559,1738789846751,-635.58214511,0.00013698,2]
[351794561,1738789846761,-500.0,0.00013698,2]
[351794563,1738789846771,-676.99,0.00013698,2]
[351794565,1738789846781,-500.0,0.00013698,2]
[351794567,1738789846791,-500.0,0.00013698,2]
[351794569,1738789846800,-500.0,0.00013698,2]
[351794571,1738789846810,-500.0,0.00013698,2]
[351794573,1738789846820,-510.89,0.00013698,2]
[351794575,1738789846830,-2793.66,0.00013698,2]
[351794577,1738789846840,-546.55,0.00013698,2]
[351794580,1738789846850,-814.12,0.00013698,2]
[351794582,1738789846860,-501.50141218,0.00013698,2]
[351794584,1738789846870,-633.07,0.00013698,2]
[351794586,1738789846879,-2997.95,0.00013698,2]
[351794588,1738789846888,-500.0,0.00013698,2]
[351794590,1738789846898,-3812.0,0.00013698,2]
[351794592,1738789846907,-3812.0,0.00013698,2]
[351794594,1738789846917,-3812.0,0.00013698,2]
[351794595,1738789846927,-3812.0,0.00013698,2]
[351794597,1738789846936,-3812.0,0.00013698,2]
[351794599,1738789846945,-3812.0,0.00013698,2]
[351794601,1738789846955,-3812.0,0.00013698,2]
[351794603,1738789846964,-3812.0,0.00013698,2]
[351794605,1738789846974,-3812.0,0.00013698,2]
[351794607,1738789846984,-3812.0,0.00013698,2]
[351794609,1738789846995,-3812.0,0.00013698,2]
[351794611,1738789847005,-3812.0,0.00013698,2]
[351794613,1738789847018,-3812.0,0.00013698,2]
[351794615,1738789847027,-500.0,0.00013698,2]
[351794617,1738789847036,-500.0,0.00013698,2]
[351794620,1738789847046,-3812.0,0.00013698,2]
[351794621,1738789847055,-3812.0,0.00013698,2]
[351794624,1738789847064,-3812.0,0.00013698,2]
[351794626,1738789847074,-3812.0,0.00013698,2]
[351794628,1738789847083,-3812.0,0.00013698,2]
[351794630,1738789847092,-3812.0,0.00013698,2]
[351794632,1738789847102,-3812.0,0.00013698,2]
[351794634,1738789847111,-3812.0,0.00013698,2]
[351794636,1738789847119,-3812.0,0.00013698,2]
[351794637,1738789847128,-3812.0,0.00013698,2]
[351794639,1738789847137,-3812.18663276,0.00013698,2]
[351794641,1738789847147,-500.0,0.00013698,2]
[351794643,1738789847156,-500.0,0.00013698,2]
[351794645,1738789847166,-500.0,0.00013698,2]
[351794647,1738789847176,-500.0,0.00013698,2]
[351794649,1738789847186,-500.0,0.00013698,2]
[351794651,1738789847196,-222.15928418,0.00013698,2]
[351794652,1738789847206,-1170.03,0.00013698,2]
[351794654,1738789847216,-316.12726998,0.00013698,2]
[351794656,1738789847225,-581.83,0.00013698,2]
[351794658,1738789847235,-669.39,0.00013698,2]
[351794660,1738789847245,-500.0,0.00013698,2]
[351794661,1738789847256,-500.0,0.00013698,2]
[351794663,1738789847268,-500.0,0.00013698,2]
[351794664,1738789847280,-6766.71,0.00013698,2]
[351794665,1738789847295,-534.23,0.00013698,2]
[351794667,1738789847305,-500.0,0.00013698,2]
[351794669,1738789847316,-33829.73,0.00013698,2]
[351794671,1738789847327,-500.0,0.00013698,2]
[351794673,1738789847338,-500.0,0.00013698,2]
[351794675,1738789847349,-500.0,0.00013698,2]
[351794677,1738789847361,-2680.92,0.00013698,2]
[351794678,1738789847371,-500.0,0.00013698,2]
[351794680,1738789847381,-500.0,0.00013698,2]
[351794682,1738789847391,-500.0,0.00013698,2]
[351794684,1738789847401,-500.0,0.00013698,2]
[351794685,1738789847412,-598.3233205,0.00013698,2]
[351794686,1738789847422,-500.0,0.00013698,2]
[351794687,1738789847432,-500.0,0.00013698,2]
[351794688,1738789847442,-500.0,0.00013698,2]
[351794689,1738789847453,-500.0,0.00013698,2]
[351794690,1738789847464,-1147.83,0.00013698,2]
[351794691,1738789847476,-2919.62,0.00013698,2]
[351794692,1738789847487,-505.51740772,0.00013698,2]
[351794693,1738789847497,-2479.38,0.00013698,2]
[351794694,1738789847509,-500.0,0.00013698,2]
[351794696,1738789847520,-500.0,0.00013698,2]
[351794698,1738789847530,-500.0,0.00013698,2]
[351794700,1738789847540,-186.924811,0.00013699,2]
[351794702,1738789847550,-201.6004606,0.00013699,2]
[351794704,1738789847559,-228.92,0.00013699,2]
[351794705,1738789847566,-500.0,0.00013699,2]
[351794707,1738789847574,-500.0,0.00013699,2]
[351794709,1738789847585,-500.0,0.00013699,2]
[351794710,1738789847594,-442.16716927,0.00013699,2]
[351794712,1738789847606,-500.0,0.00013699,2]
[351794713,1738789847616,-354.252,0.00013699,2]
[351794714,1738789847627,-500.0,0.00013699,2]
[351794715,1738789847636,-500.0,0.00013699,2]
[351794716,1738789847648,-500.0,0.00013699,2]
[351794717,1738789847659,-151.0,0.000137,2]
[351794718,1738789847669,-151.0,0.000137,2]
[351794719,1738789847679,-151.0,0.000137,2]
[351794720,1738789847691,-151.0,0.000137,2]
[351794722,1738789847702,-952.85676519,0.00013735,2]
[351794724,1738789847714,-500.0,0.00013766,7]
[351794726,1738789847725,-500.0,0.00013766,7]
[351794728,1738789847736,-500.0,0.00013766,7]
[351794730,1738789847747,-500.0,0.00013766,7]
[351794732,1738789847757,-500.0,0.00013766,7]
[351794733,1738789847768,-500.0,0.00013766,7]
[351794735,1738789847779,-500.0,0.00013766,7]
[351794737,1738789847790,-195.73,0.00013766,7]
[351794738,1738789847801,-151.0,0.000138,2]
[351794740,1738789847812,-151.0,0.000138,2]
[351794741,1738789847822,-151.0,0.000138,2]
[351794742,1738789847832,-151.0,0.000138,2]
[351794743,1738789847842,-151.0,0.000138,2]
[351794744,1738789847853,-151.0,0.000138,2]
[351794745,1738789847863,-154.4720971,0.000138,2]
[351794746,1738789847874,-191.1480875,0.000138,2]
[351794747,1738789847885,-153.0,0.000138,2]
[351794748,1738789847896,-153.0,0.000138,2]
[351794749,1738789847906,-154.5151656,0.000138,2]
[351794750,1738789847916,-308.5964231,0.000138,2]
[351794751,1738789847926,-354.6451938,0.000138,2]
[351794752,1738789847937,-151.0,0.00013835,2]
[351794753,1738789847947,-152.554602,0.00013835,2]
[351794754,1738789847957,-229.61562842,0.00013835,2]
[351794755,1738789847967,-500.0,0.00013835,2]
[351794756,1738789847977,-500.0,0.00013835,2]
[351794757,1738789847987,-500.0,0.00013835,2]
[351794758,1738789847998,-232.80063,0.00013835,2]
[351794759,1738789848009,-500.0,0.00013835,2]
[351794760,1738789848020,-500.0,0.00013835,2]
[351794761,1738789848030,-500.0,0.00013835,2]
[351794762,1738789848041,-530.13,0.00013835,2]
[351794763,1738789848051,-746.44,0.00013835,2]
[351794764,1738789848062,-500.0,0.00013835,2]
[351794765,1738789848072,-500.0,0.00013835,2]
[351794766,1738789848083,-500.0,0.00013835,2]
[351794767,1738789848094,-621.93,0.00013835,2]
[351794768,1738789848105,-500.0,0.00013835,2]
[351794769,1738789848116,-500.0,0.00013835,2]
[351794770,1738789848127,-500.0,0.00013835,2]
[351794771,1738789848140,-615.74,0.00013835,2]
[351794772,1738789848150,-500.0,0.00013835,2]
[351794773,1738789848161,-1179.54,0.00013835,2]
[351794774,1738789848172,-500.0,0.00013835,2]
[351794775,1738789848184,-500.0,0.00013835,2]
[351794776,1738789848195,-1013.38,0.00013835,2]
[351794777,1738789848206,-500.0,0.00013835,2]
[351794778,1738789848218,-500.0,0.00013835,2]
[351794779,1738789848228,-500.0,0.00013835,2]
[351794780,1738789848238,-500.0,0.00013835,2]
[351794781,1738789848249,-572.17,0.00013835,2]
[351794782,1738789848260,-500.0,0.00013835,2]
[351794783,1738789848271,-500.0,0.00013835,2]
[351794784,1738789848284,-500.0,0.00013835,2]
[351794785,1738789848297,-500.0,0.00013835,2]
[351794786,1738789848306,-500.0,0.00013835,2]
[351794787,1738789848316,-500.0,0.00013835,2]
[351794788,1738789848327,-1000.0,0.00013835,2]
[351794789,1738789848338,-652.34,0.00013835,2]
[351794790,1738789848348,-500.0,0.00013835,2]
[351794791,1738789848360,-640.09,0.00013835,2]
[351794792,1738789848370,-311.54707333,0.00013835,2]
[351794793,1738789848381,-500.0,0.00013835,2]
[351794794,1738789848392,-1502.48,0.00013835,2]
[351794795,1738789848403,-500.0,0.00013835,2]
[351794796,1738789848414,-1508.32,0.00013835,2]
[351794797,1738789848425,-500.0,0.00013835,2]
[351794798,1738789848436,-624.42513372,0.00013835,2]
[351794799,1738789848446,-500.0,0.00013835,2]
[351794800,1738789848457,-781.77,0.00013835,2]
[351794801,1738789848467,-500.0,0.00013835,2]
[351794802,1738789848477,-500.0,0.00013835,2]
[351794803,1738789848487,-500.0,0.00013835,2]
[351794804,1738789848498,-500.0,0.00013835,2]
[351794805,1738789848509,-500.0,0.00013835,2]
[351794806,1738789848519,-500.0,0.00013835,2]
[351794807,1738789848531,-500.0,0.00013835,2]
[351794808,1738789848543,-500.0,0.00013835,2]
[351794809,1738789848554,-506.19487016,0.00013835,2]
[351794810,1738789848565,-188.0,0.00013835,2]
[351794811,1738789848576,-500.0,0.00013835,2]
[351794812,1738789848587,-500.0,0.00013835,2]
[351794813,1738789848598,-500.0,0.00013835,2]
[351794814,1738789848609,-500.0,0.00013835,2]
[351794815,1738789848619,-500.0,0.00013835,2]
[351794816,1738789848630,-500.0,0.00013835,2]
[351794817,1738789848641,-500.0,0.00013835,2]
[351794818,1738789848651,-500.0,0.00013835,2]
[351794819,1738789848662,-500.0,0.00013835,2]
[351794820,1738789848672,-389.98335779,0.00013835,2]
[351794821,1738789848682,-500.0,0.00013835,2]
[351794822,1738789848692,-500.0,0.00013835,2]
[351794823,1738789848702,-974.77,0.00013835,2]
[351794824,1738789848712,-500.0,0.00013835,2]
[351794825,1738789848722,-500.0,0.00013835,2]
[351794826,1738789848732,-500.0,0.00013835,2]
[351794827,1738789848742,-500.0,0.00013835,2]
[351794828,1738789848752,-150.16573334,0.00013835,2]
[351794829,1738789848765,-500.0,0.00013835,2]
[351794830,1738789848775,-515.49596102,0.00013835,2]
[351794831,1738789848785,-500.0,0.00013835,2]
[351794832,1738789848794,-527.51,0.00013835,2]
[351794833,1738789848804,-500.0,0.00013835,2]
[351794834,1738789848814,-500.0,0.00013835,2]
[351794835,1738789848824,-500.0,0.00013835,2]
[351794836,1738789848834,-465.4568436,0.00013835,2]
[351794837,1738789848845,-906.83,0.00013835,2]
[351794838,1738789848855,-301.81898632,0.00013835,2]
[351794839,1738789848865,-500.0,0.00013835,2]
[351794840,1738789848875,-607.6328422,0.00013835,2]
[351794841,1738789848884,-500.0,0.00013835,2]
[351794842,1738789848894,-500.0,0.00013835,2]
[351794843,1738789848905,-516.93897456,0.00013835,2]
[351794844,1738789848914,-500.0,0.00013835,2]
[351794845,1738789848924,-500.0,0.00013835,2]
[351794846,1738789848934,-515.66,0.00013835,2]
[351794847,1738789848944,-500.0,0.00013835,2]
[351794848,1738789848954,-676.01,0.00013835,2]
[351794849,1738789848964,-500.0,0.00013835,2]
[351794850,1738789848974,-500.0,0.00013835,2]
[351794851,1738789848984,-151.0,0.00013835,2]
[351794852,1738789849124,-500.0,0.00013835,2]
[351794853,1738789849134,-500.0,0.00013835,2]
[351794854,1738789849144,-151.0,0.00013835,2]
[351794855,1738789849153,-500.0,0.00013835,2]
[351794856,1738789849163,-500.0,0.00013835,2]
[351794857,1738789849171,-769.25,0.00013835,2]
[351794858,1738789849180,-851.27,0.00013835,2]
[351794859,1738789849190,-500.0,0.00013835,2]
[351794860,1738789849200,-151.0,0.00013835,2]
[351794861,1738789849209,-637.13,0.00013835,2]
[351794862,1738789849219,-414.51517645,0.00013835,2]
[351794863,1738789849228,-500.0,0.00013835,2]
[351794864,1738789849237,-593.05,0.00013835,2]
[351794865,1738789849247,-500.0,0.00013835,2]
[351794866,1738789849256,-693.14,0.00013835,2]
[351794867,1738789849268,-500.0,0.00013835,2]
[351794868,1738789849278,-341.55286585,0.00013835,2]
[351794869,1738789849290,-500.0,0.00013835,2]
[351794870,1738789849301,-500.0,0.00013835,2]
[351794871,1738789849311,-1713.41,0.00013835,2]
[351794872,1738789849321,-1637.88,0.00013835,2]
[351794873,1738789849332,-500.0,0.00013835,2]
[351794874,1738789849342,-500.0,0.00013835,2]
[351794875,1738789849352,-500.0,0.00013835,2]
[351794876,1738789849363,-221.44205234,0.00013835,2]
[351794877,1738789849373,-500.0,0.00013835,2]
[351794878,1738789849383,-500.0,0.00013835,2]
[351794879,1738789849392,-1320.52,0.00013835,2]
[351794880,1738789849402,-500.0,0.00013835,2]
[351794881,1738789849411,-2506.79,0.00013835,2]
[351794882,1738789849423,-500.0,0.00013835,2]
[351794883,1738789849433,-305.34318282,0.00013835,2]
[351794884,1738789849442,-803.11,0.00013835,2]
[351794885,1738789849451,-1015.77,0.00013835,2]
[351794886,1738789849461,-500.0,0.00013835,2]
[351794887,1738789849471,-808.51,0.00013835,2]
[351794888,1738789849480,-500.0,0.00013835,2]
[351794889,1738789849490,-500.0,0.00013835,2]
[351794890,1738789849500,-523.43,0.00013835,2]
[351794891,1738789849510,-500.0,0.00013835,2]
[351794892,1738789849519,-500.0,0.00013835,2]
[351794893,1738789849528,-500.0,0.00013835,2]
[351794894,1738789849538,-2277.66,0.00013835,2]
[351794895,1738789849547,-500.0,0.00013835,2]
[351794896,1738789849556,-500.0,0.00013835,2]
[351794897,1738789849566,-500.0,0.00013835,2]
[351794898,1738789849576,-826.88,0.00013835,2]
[351794899,1738789849586,-501.44963769,0.00013835,2]
[351794900,1738789849595,-1000.0,0.00013835,2]
[351794901,1738789849605,-500.0,0.00013835,2]
[351794902,1738789849615,-500.0,0.00013835,2]
[351794903,1738789849626,-500.0,0.00013835,2]
[351794904,1738789849636,-500.0,0.00013835,2]
[351794905,1738789849646,-500.0,0.00013835,2]
[351794906,1738789849655,-501.34143529,0.00013835,2]
[351794907,1738789849665,-393.0,0.00013835,2]
[351794908,1738789849675,-540.18,0.00013835,2]
[351794909,1738789849686,-572.46,0.00013835,2]
[351794910,1738789849696,-500.0,0.00013835,2]
[351794911,1738789849707,-500.0,0.00013835,2]
[351794912,1738789849716,-536.27,0.00013835,2]
[351794913,1738789849727,-712.18,0.00013835,2]
[351794914,1738789849737,-500.0,0.00013835,2]
[351794915,1738789849747,-151.0,0.00013835,2]
[351794916,1738789849757,-500.0,0.00013835,2]
[351794917,1738789849768,-268.07552366,0.00013835,2]
[351794918,1738789849778,-764.77,0.00013835,2]
[351794919,1738789849788,-340.59831337,0.00013835,2]
[351794920,1738789849797,-500.0,0.00013835,2]
[351794921,1738789849807,-1063.56,0.00013835,2]
[351794922,1738789849816,-500.82785727,0.00013835,2]
[351794923,1738789849826,-500.0,0.00013835,2]
[351794924,1738789849835,-887.02,0.00013835,2]
[351794925,1738789849845,-500.0,0.00013835,2]
[351794926,1738789849855,-525.87,0.00013835,2]
[351794927,1738789849865,-500.0,0.00013835,2]
[351794928,1738789849875,-500.0,0.00013835,2]
[351794929,1738789849885,-362.32917678,0.00013835,2]
[351794930,1738789849898,-500.0,0.00013835,2]
[351794931,1738789849908,-544.93240549,0.00013835,2]
[351794932,1738789849918,-500.0,0.00013835,2]
[351794933,1738789849928,-500.0,0.00013835,2]
[351794934,1738789849937,-500.0,0.00013835,2]
[351794935,1738789849947,-500.0,0.00013835,2]
[351794936,1738789849957,-500.0,0.00013835,2]
[351794937,1738789849967,-500.0,0.00013835,2]
[351794938,1738789849976,-352.54752496,0.00013835,2]
[351794939,1738789849987,-1530.29,0.00013835,2]
[351794940,1738789849997,-1219.23,0.00013835,2]
[351794941,1738789850007,-335.53491722,0.00013835,2]
[351794942,1738789850018,-500.0,0.00013835,2]
[351794943,1738789850027,-500.0,0.00013835,2]
[351794944,1738789850036,-500.0,0.00013835,2]
[351794945,1738789850046,-500.0,0.00013835,2]
[351794946,1738789850055,-500.0,0.00013835,2]
[351794947,1738789850065,-683.41,0.00013835,2]
[351794948,1738789850075,-500.0,0.00013835,2]
[351794949,1738789850084,-1283.92,0.00013835,2]
[351794950,1738789850094,-719.65,0.00013835,2]
[351794951,1738789850103,-500.0,0.00013835,2]
[351794952,1738789850113,-500.0,0.00013835,2]
[351794953,1738789850123,-500.0,0.00013835,2]
[351794954,1738789850133,-500.0,0.00013835,2]
[351794955,1738789850142,-3741.14,0.00013835,2]
[351794956,1738789850152,-508.21544375,0.00013835,2]
[351794957,1738789850161,-502.42819887,0.00013835,2]
[351794958,1738789850171,-500.0,0.00013835,2]
[351794959,1738789850180,-500.0,0.00013835,2]
[351794960,1738789850190,-608.82,0.00013835,2]
[351794961,1738789850199,-902.77,0.00013835,2]
[351794962,1738789850208,-500.0,0.00013835,2]
[351794963,1738789850218,-500.0,0.00013835,2]
[351794964,1738789850228,-500.0,0.00013835,2]
[351794965,1738789850237,-500.0,0.00013835,2]
[351794966,1738789850252,-2411.97,0.00013835,2]
[351794967,1738789850261,-1474.38,0.00013835,2]
[351794968,1738789850271,-500.0,0.00013835,2]
[351794969,1738789850281,-3850.61,0.00013835,2]
[351794970,1738789850295,-500.0,0.00013835,2]
[351794971,1738789850304,-500.0,0.00013835,2]
[351794972,1738789850314,-899.87,0.00013835,2]
[351794973,1738789850323,-500.0,0.00013835,2]
[351794974,1738789850334,-1760.08,0.00013835,2]
[351794975,1738789850343,-151.0,0.00013835,2]
[351794976,1738789850353,-500.0,0.00013835,2]
[351794977,1738789850363,-500.0,0.00013835,2]
[351794978,1738789850376,-500.0,0.00013835,2]
[351794979,1738789850385,-500.0,0.00013835,2]
[351794980,1738789850395,-500.0,0.00013835,2]
[351794981,1738789850405,-1389.37,0.00013835,2]
[351794982,1738789850415,-502.48009893,0.00013835,2]
[351794983,1738789850425,-500.0,0.00013835,2]
[351794984,1738789850435,-863.74,0.00013835,2]
[351794985,1738789850444,-1266.74,0.00013835,2]
[351794986,1738789850454,-500.0,0.00013835,2]
[351794987,1738789850464,-500.0,0.00013835,2]
[351794988,1738789850473,-500.0,0.00013835,2]
[351794989,1738789850482,-280.72192247,0.00013835,2]
[351794990,1738789850492,-500.0,0.00013835,2]
[351794991,1738789850502,-501.55642339,0.00013835,2]
[351794992,1738789850512,-500.0,0.00013835,2]
[351794993,1738789850522,-936.77,0.00013835,2]
[351794994,1738789850531,-500.0,0.00013835,2]
[351794995,1738789850541,-1872.18,0.00013835,2]
[351794996,1738789850551,-725.45,0.00013835,2]
[351794997,1738789850560,-500.0,0.00013835,2]
[351794998,1738789850569,-500.0,0.00013835,2]
[351794999,1738789850579,-500.0,0.00013835,2]
[351795000,1738789850588,-209.709451,0.00013835,2]
[351795001,1738789850597,-500.0,0.00013835,2]
[351795002,1738789850607,-500.0,0.00013835,2]
[351795003,1738789850616,-500.0,0.00013835,2]
[351795004,1738789850625,-500.0,0.00013835,2]
[351795005,1738789850634,-500.0,0.00013835,2]
[351795006,1738789850643,-500.0,0.00013835,2]
[351795007,1738789850651,-1297.11,0.00013835,2]
[351795008,1738789850661,-500.0,0.00013835,2]
[351795009,1738789850670,-151.0,0.00013835,2]
[351795010,1738789850680,-272.753926,0.00013835,2]
[351795011,1738789850689,-754.58,0.00013835,2]
[351795012,1738789850698,-1573.04,0.00013835,2]
[351795013,1738789850707,-695.7,0.00013835,2]
[351795014,1738789850716,-500.0,0.00013835,2]
[351795015,1738789850725,-500.0,0.00013835,2]
[351795016,1738789850735,-500.0,0.00013835,2]
[351795017,1738789850745,-500.0,0.00013835,2]
[351795018,1738789850754,-500.0,0.00013835,2]
[351795019,1738789850763,-628.58,0.00013835,2]
[351795020,1738789850772,-500.0,0.00013835,2]
[351795021,1738789850782,-500.0,0.00013835,2]
[351795022,1738789850791,-967.96,0.00013835,2]
[351795023,1738789850800,-500.0,0.00013835,2]
[351795024,1738789850810,-500.0,0.00013835,2]
[351795025,1738789850819,-500.0,0.00013835,2]
[351795026,1738789850828,-805.22,0.00013835,2]
[351795027,1738789850837,-500.0,0.00013835,2]
[351795028,1738789850846,-500.0,0.00013835,2]
[351795029,1738789850856,-587.01,0.00013835,2]
[351795030,1738789850865,-1041.24,0.00013835,2]
[351795031,1738789850874,-500.0,0.00013835,2]
[351795032,1738789850884,-555.40113007,0.00013835,2]
[351795033,1738789850895,-500.0,0.00013835,2]
[351795034,1738789850904,-500.0,0.00013835,2]
[351795035,1738789850915,-919.45,0.00013835,2]
[351795036,1738789850925,-500.0,0.00013835,2]
[351795037,1738789850935,-807.14,0.00013835,2]
[351795038,1738789850945,-4294.09,0.00013835,2]
[351795039,1738789850956,-500.0,0.00013835,2]
[351795040,1738789850966,-288.21855819,0.00013835,2]
[351795041,1738789850975,-1875.75,0.00013835,2]
[351795042,1738789850984,-612.81846506,0.00013835,2]
[351795043,1738789850994,-500.0,0.00013835,2]
[351795044,1738789851003,-500.0,0.00013835,2]
[351795045,1738789851012,-500.0,0.00013835,2]
[351795046,1738789851022,-500.0,0.00013835,2]
[351795047,1738789851032,-500.0,0.00013835,2]
[351795048,1738789851042,-1018.91,0.00013835,2]
[351795049,1738789851051,-500.0,0.00013835,2]
[351795050,1738789851061,-500.0,0.00013835,2]
[351795051,1738789851071,-2339.06,0.00013835,2]
[351795052,1738789851080,-500.0,0.00013835,2]
[351795053,1738789851089,-500.0,0.00013835,2]
[351795054,1738789851099,-151.0,0.00013835,2]
[351795055,1738789851109,-500.0,0.00013835,2]
[351795056,1738789851124,-500.0,0.00013835,2]
[351795057,1738789851134,-500.0,0.00013835,2]
[351795058,1738789851143,-1559.82,0.00013835,2]
[351795059,1738789851153,-640.08,0.00013835,2]
[351795060,1738789851163,-523.48,0.00013835,2]
[351795061,1738789851173,-833.97,0.00013835,2]
[351795062,1738789851183,-556.35,0.00013835,2]
[351795063,1738789851193,-500.0,0.00013835,2]
[351795064,1738789851204,-500.0,0.00013835,2]
[351795065,1738789851213,-500.0,0.00013835,2]
[351795066,1738789851223,-500.0,0.00013835,2]
[351795067,1738789851233,-151.0,0.00013835,2]
[351795068,1738789851243,-500.0,0.00013835,2]
[351795069,1738789851253,-682.39,0.00013835,2]
[351795070,1738789851263,-1254.59,0.00013835,2]
[351795071,1738789851275,-500.0,0.00013835,2]
[351795072,1738789851285,-500.0,0.00013835,2]
[351795073,1738789851298,-640.69,0.00013835,2]
[351795074,1738789851308,-531.24,0.00013835,2]
[351795075,1738789851318,-500.0,0.00013835,2]
[351795076,1738789851327,-500.0,0.00013835,2]
[351795077,1738789851338,-1052.83,0.00013835,2]
[351795078,1738789851348,-746.87,0.00013835,2]
[351795079,1738789851358,-500.0,0.00013835,2]
[351795080,1738789851367,-500.0,0.00013835,2]
[351795081,1738789851377,-500.26325349,0.00013835,2]
[351795082,1738789851386,-500.0,0.00013835,2]
[351795083,1738789851396,-500.0,0.00013835,2]
[351795084,1738789851406,-552.4757375,0.00013835,2]
[351795085,1738789851534,-500.0,0.00013835,2]
[351795086,1738789851545,-500.0,0.00013835,2]
[351795087,1738789851555,-500.0,0.00013835,2]
[351795088,1738789851566,-500.0,0.00013835,2]
[351795089,1738789851575,-500.0,0.00013835,2]
[351795090,1738789851584,-643.74,0.00013835,2]
[351795091,1738789851593,-500.0,0.00013835,2]
[351795092,1738789851603,-500.0,0.00013835,2]
[351795093,1738789851612,-500.0,0.00013835,2]
[351795094,1738789851621,-500.0,0.00013835,2]
[351795095,1738789851630,-961.16,0.00013835,2]
[351795096,1738789851640,-779.61,0.00013835,2]
[351795097,1738789851649,-500.0,0.00013835,2]
[351795098,1738789851658,-1843.2,0.00013835,2]
[351795099,1738789851669,-500.0,0.00013835,2]
[351795100,1738789851679,-522.31791912,0.00013835,2]
[351795101,1738789851690,-500.0,0.00013835,2]
[351795102,1738789851699,-500.0,0.00013835,2]
[351795103,1738789851709,-528.02,0.00013835,2]
[351795104,1738789851719,-500.0,0.00013835,2]
[351795105,1738789851729,-714.01,0.00013835,2]
[351795106,1738789851738,-1225.16,0.00013835,2]
[351795107,1738789851748,-500.0,0.00013835,2]
[351795108,1738789851758,-500.0,0.00013835,2]
[351795109,1738789851768,-500.0,0.00013835,2]
[351795110,1738789851778,-500.0,0.00013835,2]
[351795111,1738789851787,-500.0,0.00013835,2]
[351795112,1738789851799,-500.0,0.00013835,2]
[351795113,1738789851809,-651.64,0.00013835,2]
[351795114,1738789851820,-902.1,0.00013835,2]
[351795115,1738789851830,-500.0,0.00013835,2]
[351795116,1738789851840,-500.0,0.00013835,2]
[351795117,1738789851850,-11898.98,0.00013835,2]
[351795118,1738789851860,-500.0,0.00013835,2]
[351795119,1738789851870,-500.0,0.00013835,2]
[351795120,1738789851880,-500.0,0.00013835,2]
[351795121,1738789851890,-736.28,0.00013835,2]
[351795122,1738789851899,-500.0,0.00013835,2]
[351795123,1738789851909,-201.9818426,0.00013835,2]
[351795124,1738789851919,-500.0,0.00013835,2]
[351795125,1738789851930,-4864.09,0.00013835,2]
[351795126,1738789851941,-2982.9,0.00013835,2]
[351795127,1738789851950,-500.0,0.00013835,2]
[351795128,1738789851960,-500.0,0.00013835,2]
[351795129,1738789851970,-500.0,0.00013835,2]
[351795130,1738789851979,-513.37,0.00013835,2]
[351795131,1738789851990,-517.57578407,0.00013835,2]
[351795132,1738789852001,-8095.86,0.00013835,2]
[351795133,1738789852011,-2756.48,0.00013835,2]